Cogmind - Beta 15 @@@ ROGUE MODE // 2025.05.26 @ 08:01:08 Player: SuperSwiss Result: Self-destructed Performance ------------- Evolutions (0) 0 Regions Visited (4) 800 Robots Destroyed (11) 55 Value Destroyed (210) 210 Prototype IDs (11) 220 Alien Tech Used (0) 0 Bonus (0) 0 TOTAL SCORE: 1285 Bonus ------- None Cogmind --------- Core Integrity 138/250 Matter 300/300 Energy 160/160 System Corruption 0% Temperature Cool (0) Movement Rolling (105) Ox1 Location -9/Scraptown Parts ------- > --- POWER (1) -------- Light Nuclear Core > --- PROPULSION (2) --- Armored Wheel Armored Wheel > --- UTILITY (2) ------ Medium Storage Unit Hardened Medium Armor Plating > --- WEAPON (2) ------- Shotgun Heavy Flak Cannon > --- INVENTORY (10) --- Armored Wheel Armored Wheel Compact Matter Pod (150) Subdweller Optics Seismic Detector Core Analyzer Particle Cannon Flak Gun Proton Missile Launcher Great Maul Peak State ------------ > --- POWER ------------ Light Nuclear Core > --- PROPULSION ------- Armored Wheel Armored Wheel > --- UTILITY ---------- Medium Storage Unit Hardened Medium Armor Plating > --- WEAPON ----------- Shotgun Heavy Flak Cannon > --- INVENTORY -------- Armored Wheel Armored Wheel Compact Matter Pod Subdweller Optics Seismic Detector Core Analyzer Particle Cannon Proton Missile Launcher Great Maul [Rating: 20] Favorites ----------- Power Ion Engine Engine Ion Engine Power Core Light Nuclear Core Propulsion Armored Wheel Wheel Armored Wheel Utility Medium Storage Unit Device Improved Terrain Scanner Storage Medium Storage Unit Protection Hardened Medium Armor Plating Weapon Light Assault Rifle Energy Gun Subdweller Laser Energy Cannon Particle Cannon Ballistic Gun Light Assault Rifle Ballistic Cannon Heavy Flak Cannon Build | -11 -10 -10 -9 -9 ------- Run | Yrd Mat Sub Rec Scr Slots Evolved . | . . . . . Power . | . . . . . Propulsion . | . . . . . Utility . | . . . . . Weapon . | . . . . . Parts Attached 18 | 6 4 3 . 5 Power 3 | 1 . 1 . 1 Engine 2 | 1 . 1 . . Core 1 | . . . . 1 Reactor . | . . . . . Propulsion 4 | 2 2 . . . Treads . | . . . . . Leg . | . . . . . Wheel 4 | 2 2 . . . Hover . | . . . . . Flight . | . . . . . Utility 5 | 1 2 . . 2 Device 1 | 1 . . . . Storage 2 | . 2 . . . Processor . | . . . . . Hackware . | . . . . . Protection 2 | . . . . 2 Artifact . | . . . . . Weapon 6 | 2 . 2 . 2 Energy Gun 1 | . . 1 . . Energy Cannon 1 | . . 1 . . Ballistic Gun 3 | 2 . . . 1 Ballistic Cannon 1 | . . . . 1 Launcher . | . . . . . Special Weapon . | . . . . . Impact Weapon . | . . . . . Slashing Weapon . | . . . . . Piercing Weapon . | . . . . . Special Melee Weapon . | . . . . . Unidentified Prototypes . | . . . . . Parts Lost 3 | . . 3 . . Power 1 | . . 1 . . Propulsion . | . . . . . Utility 1 | . . 1 . . Weapon 1 | . . 1 . . Highest Loss Streak 3 | . . 3 . . To Critical Strikes . | . . . . . Average Backups 7 | 1 3 8 7 9 Power . | . . . . . Propulsion 2 | . 1 3 4 2 Utility 2 | . 1 1 2 3 Weapon 2 | . . 1 1 3 Tool/Special . | . . . . . Unused Backups 13 | . 1 . . 12 Power . | . . . . . Propulsion 5 | . 1 . . 4 Utility 4 | . . . . 4 Weapon 4 | . . . . 4 Tool/Special . | . . . . . Average Slot Usage (%) 97 | . 95 98 85 99 Engine 9 | . 14 13 14 4 Core 4 | . . . . 9 Wheel 28 | . 28 28 28 28 Device 5 | . 14 12 . . Storage 13 | . 9 14 14 14 Protection 6 | . . . . 13 Energy Cannon 5 | . . 9 14 3 Ballistic Gun 16 | . 28 17 14 14 Ballistic Cannon 5 | . . . . 10 Peak Build Rating 20 | 8 12 13 11 20 Average Rating 14 | 4 9 12 11 18 On Entrance 8 | . 8 11 11 11 Naked Turns . | . . . . . Heaviest Build 34 | 9 19 22 20 34 Greatest Support 26 | 26 26 24 24 24 Greatest Overweight (x) 1 | . . . . 1 Average Overweight (x) . | . . . . . Largest Inventory Capacity 10 | 5 10 10 10 10 Average Capacity 9 | 5 8 10 10 10 Most Carried 10 | 5 8 9 7 10 Average Carried 7 | 1 3 8 7 9 Final Capacity 10 | 5 10 10 10 10 Final Carried 10 | 2 4 7 7 10 Class Distribution -------------------- 100% | Mutant Dominant Class ---------------- Mutant | -10/Materials Mutant | -10/Subcaves Mutant | -9/Recycling Mutant | -9/Scraptown Resources | -11 -10 -10 -9 -9 ----------- Run | Yrd Mat Sub Rec Scr Matter Collected 630 | 304 52 74 . 200 Remotely . | . . . . . Salvage Created 313 | 120 . 193 . . Parts 16 | 7 . 9 . . Haulers Intercepted . | . . . . . Recyclers Shooed . | . . . . . Parts Field Recycled . | . . . . . Retrieved Matter . | . . . . . Parts Self-Destructed 11 | . . 11 . . Prevented . | . . . . . Kills | -11 -10 -10 -9 -9 ------- Run | Yrd Mat Sub Rec Scr Combat Hostiles Destroyed 6 | . . 6 . . Guns 2 | . . 2 . . Cannons 4 | . . 4 . . Classes Destroyed 5 | 2 . 3 . . Tunneler 2 | 2 . . . . Recycler 1 | 1 . . . . Turret 2 | . . 2 . . Swarmer 4 | . . 4 . . Subdweller 2 | . . 2 . . Best Kill Streak 6 | 2 . 6 . . Combat Bots Only 3 | . . 3 . . Max Kills in Single Turn 1 | 1 . 1 . . Gunslinging . | . . . . . Exploded . | . . . . . Melee . | . . . . . Uniques/NPCs Destroyed . | . . . . . Combat | -11 -10 -10 -9 -9 -------- Run | Yrd Mat Sub Rec Scr Hostile Shots Fired 116 | . . 116 . . Missed 51 | . . 51 . . Hits 65 | . . 65 . . Projectile 65 | . . 65 . . Critical Strikes 2 | . . 2 . . Damage Taken 532 | . . 532 . . Core 112 | . . 112 . . Absorbed by Shields . | . . . . . Core Remaining (%) 100 | 100 . . . . Volleys Fired 39 | 11 3 25 . . Largest 2 | 2 2 2 . . Hottest 128 | 40 40 128 . . Shots Fired 74 | 22 6 46 . . Gun 54 | 22 6 26 . . Cannon 20 | . . 20 . . Launcher . | . . . . . Special . | . . . . . Kinetic 49 | 22 6 21 . . Thermal 25 | . . 25 . . Explosive . | . . . . . Electromagnetic . | . . . . . Robot Hit Streak 13 | 3 3 13 . . Robot Miss Streak 2 | 2 2 1 . . Penetration Max . | . . . . . Secondary Targets . | . . . . . Shots Hit Robots 48 | 12 3 33 . . Core Hits 20 | 5 2 13 . . Critical Kills . | . . . . . Critical Parts Destroyed . | . . . . . Critical Strikes . | . . . . . Melee Attacks . | . . . . . Impact . | . . . . . Slashing . | . . . . . Piercing . | . . . . . Sneak Attacks . | . . . . . Combat Hostiles . | . . . . . Follow-up Attacks . | . . . . . Damage Inflicted 789 | 122 31 636 . . Guns 441 | 122 31 288 . . Cannons 348 | . . 348 . . Explosions . | . . . . . Melee . | . . . . . Ramming . | . . . . . Kinetic 344 | 122 31 191 . . Thermal 445 | . . 445 . . Explosive . | . . . . . Electromagnetic . | . . . . . Impact . | . . . . . Slashing . | . . . . . Piercing . | . . . . . Highest Corruption . | . . . . . Average Corruption . | . . . . . Corruption Purged . | . . . . . Corruption Blocked . | . . . . . Overload Shots . | . . . . . Overflow Damage 17 | . . 17 . . Projectiles 17 | . . 17 . . Explosions . | . . . . . Melee . | . . . . . Knockbacks . | . . . . . Impact . | . . . . . Kinetic . | . . . . . Secondary . | . . . . . Self-Inflicted Damage . | . . . . . Shots . | . . . . . Rammed . | . . . . . Targets Rammed . | . . . . . Kicked . | . . . . . Crushed . | . . . . . Highest Temperature 80 | . . 80 . . Average Temperature 44 | . . 44 . . Received Heat Transfer 258 | . . 258 . . Siege Activations . | . . . . . Martial Activations . | . . . . . Shielding Activations . | . . . . . Robots Disrupted . | . . . . . Combat Hostiles . | . . . . . Robots Corrupted . | . . . . . Combat Hostiles . | . . . . . Parts Fried . | . . . . . Impact Corruptions . | . . . . . Robots Melted . | . . . . . Combat Hostiles . | . . . . . Parts Melted . | . . . . . Heat Transferred 754 | . . 754 . . Parts Sabotaged . | . . . . . Parts Stolen . | . . . . . Parts Stripped . | . . . . . Power Chain Reactions . | . . . . . Alert | -11 -10 -10 -9 -9 ------- Run | Yrd Mat Sub Rec Scr Maximum Alert Level . | . . . . . Low Security (%) 100 | 100 100 . 100 . Level 1 . | . . . . . Level 2 . | . . . . . Level 3 . | . . . . . Level 4 . | . . . . . Level 5 . | . . . . . High Security . | . . . . . Max Security . | . . . . . Peak Influence 31 | 10 15 . 31 . Initial 31 | . . . 31 . Average 3 | 1 . . 8 . Influence Increases 150 | 15 15 120 . . Destroy 0b10 Robot/C 120 | . . 120 . . Destroy 0b10 Robot/NC 15 | 15 . . . . Disable Machine 15 | . 15 . . . Influence Decreases 150 | 15 15 54 66 . Entered New Map 35 | . . . 35 . Time Decay 85 | 15 15 24 31 . Lost Part 30 | . . 30 . . Squads Dispatched 1 | . 1 . . . Investigation . | . . . . . Extermination . | . . . . . Reinforcement 1 | . 1 . . . Assault . | . . . . . Garrison . | . . . . . Intercept . | . . . . . Searches Triggered . | . . . . . Construction Impeded . | . . . . . Haulers Reinforced . | . . . . . Active Scanning Responses . | . . . . . Cargo Convoy Interrupts . | . . . . . Stealth | -11 -10 -10 -9 -9 --------- Run | Yrd Mat Sub Rec Scr Distress Signals . | . . . . . Communications Jammed . | . . . . . Distress Signals . | . . . . . Times Spotted 17 | . 5 12 . . Peak Tracking Total 6 | . 2 6 . . Tactical Retreats 1 | . . 1 . . Traps | -11 -10 -10 -9 -9 ------- Run | Yrd Mat Sub Rec Scr Traps Triggered . | . . . . . Indirectly . | . . . . . Trap Hack Attempts . | . . . . . Triggered . | . . . . . Disarmed . | . . . . . Reprogrammed . | . . . . . Reused . | . . . . . Traps Extracted . | . . . . . Installed . | . . . . . Triggered . | . . . . . Machines | -11 -10 -10 -9 -9 ---------- Run | Yrd Mat Sub Rec Scr Machines Disabled 1 | . 1 . . . Max in Single Turn 1 | . 1 . . . Machines Repaired . | . . . . . Machines Dismantled . | . . . . . Machines Sabotaged . | . . . . . Overloaded Fab Kills . | . . . . . Hacking | -11 -10 -10 -9 -9 --------- Run | Yrd Mat Sub Rec Scr Machines Accessed 3 | . . 1 1 1 Terminals 1 | . . . 1 . Fabricators . | . . . . . Repair Stations . | . . . . . Recycling Units . | . . . . . Scanalyzers . | . . . . . Garrison Access . | . . . . . Total Hacks 11 | . . 1 1 9 Successful 11 | . . 1 1 9 Failed . | . . . . . Catastrophic . | . . . . . Database Lockouts . | . . . . . Manual 1 | . . . 1 . Terminals 1 | . . . 1 . Fabricators . | . . . . . Repair Stations . | . . . . . Recycling Units . | . . . . . Scanalyzers . | . . . . . Garrison Access . | . . . . . Terminal Hacks 10 | . . 1 . 9 Record 9 | . . . . 9 Proto ID Catalog 1 | . . 1 . . Fabricator Hacks . | . . . . . Repair Station Hacks . | . . . . . Recycling Unit Hacks . | . . . . . Scanalyzer . | . . . . . Garrison Access Hacks . | . . . . . Unauthorized Hacks 1 | . . . 1 . Terminals 1 | . . . 1 . Botnet 1 | . . . 1 . Fabricators . | . . . . . Repair Stations . | . . . . . Recycling Units . | . . . . . Scanalyzers . | . . . . . Garrison Access . | . . . . . Data Cores Recovered . | . . . . . Used . | . . . . . Hacking Detections . | . . . . . Full Trace Events . | . . . . . Feedback Events . | . . . . . Feedback Blocked . | . . . . . Robot Schematics Acquired . | . . . . . Robots Built . | . . . . . Authchips . | . . . . . Time . | . . . . . Total Robot Build Rating . | . . . . . Part Schematics Acquired . | . . . . . Parts Built . | . . . . . Authchips . | . . . . . Time . | . . . . . Total Part Build Rating . | . . . . . Parts Repaired . | . . . . . Time . | . . . . . Parts Recycled . | . . . . . Recycled Matter . | . . . . . Retrieved Matter . | . . . . . Retrieved Components . | . . . . . Parts Scanalyzed . | . . . . . Part Schematics Acquired . | . . . . . Parts Damaged . | . . . . . Bothacking | -11 -10 -10 -9 -9 ------------ Run | Yrd Mat Sub Rec Scr Used RIF Installer . | . . . . . Robots Hacked . | . . . . . Non-combat . | . . . . . Combat . | . . . . . Robot Hacks Applied . | . . . . . Relay Couplers Released . | . . . . . Fabnet Peak Effective % . | . . . . . Robots Rewired . | . . . . . Allies Hacked . | . . . . . Hacks Repelled . | . . . . . Allies | -11 -10 -10 -9 -9 -------- Run | Yrd Mat Sub Rec Scr Total Allies . | . . . . . Largest Group . | . . . . . Highest-Rated Group . | . . . . . Highest-Rated Ally . | . . . . . Total Orders . | . . . . . Ally Attacks . | . . . . . Total Damage . | . . . . . Kills . | . . . . . Allies Corrupted . | . . . . . Allies Melted . | . . . . . Intel | -11 -10 -10 -9 -9 ------- Run | Yrd Mat Sub Rec Scr Active Infowar (turns) 736 | 8 238 490 . . Terrain 736 | 8 238 490 . . Robot Analysis Total . | . . . . . Derelict Logs Recovered 1 | . . 1 . . Drone Launches . | . . . . . Drone Recoveries . | . . . . . Exploration | -11 -10 -10 -9 -9 ------------- Run | Yrd Mat Sub Rec Scr Turns Passed 1990 | 88 238 537 147 980 Spaces Moved 1797 | 54 192 451 164 936 Core 13 | 13 . . . . Treads . | . . . . . Legs . | . . . . . Wheels 1784 | 41 192 451 164 936 Hover . | . . . . . Flight . | . . . . . Fastest Speed 50 | 50 90 90 90 90 Average Speed 95 | 80 90 90 90 101 Slowest Speed 105 | 90 90 90 90 105 Overloaded Moves . | . . . . . Propulsion Burnouts . | . . . . . Robots Hopped . | . . . . . Potential Cave-ins . | . . . . . Cave-ins Triggered . | . . . . . Exploration Rate (%) 34 | 3 45 39 26 59 Regions Visited 4 Branch Regions 3 Pre-discovered Areas . | . . . . . Known Exits Taken . | . . . . . Unknown Exits Taken 4 | 1 1 1 1 . Scrap Searched 7 | . . . . 7 Spaces Dug . | . . . . . Terrain Destroyed . | . . . . . Melee . | . . . . . Projectile . | . . . . . AOE . | . . . . . Terrain Rammed . | . . . . . Walls Destroyed . | . . . . . Machines Disabled . | . . . . . Actions | -11 -10 -10 -9 -9 --------- Run | Yrd Mat Sub Rec Scr Total 1997 | 78 252 535 163 969 Wait 102 | . 43 51 . 8 Move 1793 | 53 191 450 163 936 Hop . | . . . . . Pick Up 31 | 8 7 5 . 11 Fast Attach 1 | . . . . 1 Attach 12 | 6 1 2 . 3 Detach 1 | . . . . 1 Swap 6 | . 3 2 . 1 Drop 12 | . 4 . . 8 Fire 39 | 11 3 25 . . Melee . | . . . . . Ram . | . . . . . Kick . | . . . . . Crush . | . . . . . Escape Stasis . | . . . . . Rewire . | . . . . . Trap . | . . . . . Miscellaneous . | . . . . . Route ------- -11/Scrapyard -10/Materials (discovered 2 exits: [*Min] / *Sub) -10/Subcaves -9/Recycling -9/Scraptown (discovered 1 exit: [*Fac]) History --------- Turn | Location | Event 18 | -11/Scrapyard | Discovered new exit (range 16) 89 | -11/Scrapyard | Entered Materials 90 | -10/Materials | Met a group of wandering Federalists 211 | -10/Materials | Discovered new exit (range 11) 313 | -10/Materials | Build established: Mutant 318 | -10/Materials | Discovered new exit (range 8) 327 | -10/Materials | Entered Subcaves 328 | -10/Subcaves | Continued accompanying wandering Federalists (1) 328 | -10/Subcaves | Approached by a straggling Scientist 471 | -10/Subcaves | A swath of the cavern ceiling suddenly collapsed 515 | -10/Subcaves | Learned Materials machine intel 548 | -10/Subcaves | Visited 4L-MR0's lab 802 | -10/Subcaves | Discovered new exit (range 15) 855 | -10/Subcaves | Lost 3 parts (1p1u1w) 864 | -10/Subcaves | Entered Recycling 984 | -9/Recycling | Scanned before Scraplab entrance 998 | -9/Recycling | Entered Scraplab 1010 | -9/Recycling | Discovered new exit (range 2) 1011 | -9/Recycling | Entered Scraptown 1320 | -9/Scraptown | Visited Symbiants 1349 | -9/Scraptown | Visited Assassins FH 1389 | -9/Scraptown | Visited SPCMW 1407 | -9/Scraptown | Visited Red Mages 1489 | -9/Scraptown | Visited Fellowship of the Rings 1633 | -9/Scraptown | Visited Bundlers 1694 | -9/Scraptown | Visited Cyclists 1756 | -9/Scraptown | Heard Great Nut preacher, LISTEN AND RECITE! 1856 | -9/Scraptown | Discovered new exit (range 3) 1965 | -9/Scraptown | Visited UFD Registry 1991 | -9/Scraptown | Self-destructed Last Messages --------------- KTG-V3: LISTEN AND RECITE! 30 Age threatens to wither all 31 but wisdom stays the course 32 from non-mechanical roots 33 wondrous processes lead 34 to a hard form immortal 35 PRAISE BE TO GREAT NUT! 01856_ EXIT=FOUND 01889_ Searching scrap... 01889_ Found Aluminum Leg. 01889_ Found Lgt. Treads. 01889_ Found Spread Laser. 01889_ Found 49 Matter. 01890_ Acquired 12 matter. 2U-4VX(j): Hello there, Wanderer. Welcome to Scraptown! Feel free to enjoy the outer areas of our peaceful enclave, and maybe consider becoming a registered member of the United Federation of Derelicts. We have support groups of various backgrounds, and free bolts. Let me know if you'd like to join us. Pretty much everyone says yes, I mean, how could you resist? Map ----- +----------------------------------------------------+ | #* ## /![![ # #????????????????? | | ##"" #????????????????? | | # ##" ! # #????????????????? | | # ##""[ # ###??????????????? | | # #### ## # ""#"#????????????? | | # ## ]=!# # """"#????????????? | | # ##!! # # ""###????????????? | | # ##! *# [! # ###??????????????? | | # ## #" " " " # #####????????????? | | # ##!!] #""" """ # "????????????? | | # ################# "????????????? | | # #???????????????# "????????????? | | # #???????????????# "????????????? | | # ################# "????????????? | | # "????????????? | | "????????????? | | # "????????????? | | # "????????????? | | # "????????????? | | #"????????????? | | #?????????????? | | #?????????????? | | #### #################### ### ####?????????????? | | #" #???# ## #????????????????? | | #"" #???# ## #????????????????? | | #"" """ #???# @ ## #????????????????? | | #""" """#???#h ## #????????????????? | | #"" " " """"#???# ## #????????????????? | | #"" """ "#???# ## #????????????????? | | #" """ ""#???# ## #????????????????? | | #" " ""#???# x ## #????????????????? | | #"" """""" ""#???# ## #????????????????? | | #"""######+#"#???############ #????????????????? | | #"""#!!!!!!#"#??????????????# #????????????????? | | #"""#! ! !#?#???############ #????????????????? | | ############?????#""""""""""" #????????????????? | | ?????????????????#""""" """"" #????????????????? | | ???????????#######"""" " "" #????????????????? | | ???????????# #????????????????? | | ????????#### #####"" "" "" " #????????????????? | | ????????#""" "#??#""""""""""" #????????????????? | | ????????#""" "#??#""""""""""" #????????????????? | | ????????#""" "#??############ #????????????????? | | ????????#"" "#?############# #????????????????? | | ????????#"" "#?#"""""""""""# #????????????????? | | ????????#" "#?#"" |!= "# #????????????????? | | ????????#"| "#?#""=![!! [ "# #????????????????? | | ??" ????#"" "#?#"" "# #????????????????? | | ##"" ""##"" ""###""" """""""# #????????????????? | | #????????????????? | +----------------------------------------------------+ Best States ------------- Heat Dissipation 25 Energy Generation 15 Energy Capacity 250 Matter Stores 300 Matter Capacity 300 Sight Range 16 Terrain Scan Range 16 Terrain Scan Density 10 Armor Coverage 225 Propulsion Shielding 33 Evasion (%) 50 Item Schematics ----------------- None Robot Schematics ------------------ None Fabricated ------------ Nothing Repaired ---------- Nothing Alien Tech Used ----------------- None Achievements -------------- None Challenges ------------ None Game ------ Seed PrecisionTacticalSlayer Manual? 0 Play Time 00:27:54 Cumulative 53.0 hours Start 2025.05.24 @ 22:32:02 End 2025.05.26 @ 08:01:08 Sessions 3 Manual Loads 0 Difficulty Rogue Special Mode None Game No. 64 Rogue 61 Adventurer 0 Explorer 3 Win Type - Total 0 Types 0/0/0/0/0/0/0/0/0/0 Lore% 11 Gallery% 34 Achievement% 32 Wizard Run 0 Options --------- Layout 0 ASCII 0 Keyboard 0 Movement Numpad Keybinds 0 Fullscreen 2 Font 16/SmallcapsGlow Map View 88x55 Zoom Use 0% Tactical HUD 1 Map Filters NONE Filters NONE Steam 1 RUN: 48a9e28d-9ece-46d9-8664-ea5f3f90dc67